[Event "Titled Tuesday Blitz November 14 Early 2023"]
[White "Raahul V S"]
[Black "Zhigalko, Sergei"]
[WhiteFideId "25035525"]
[BlackFideId "13502956"]
[WhiteElo "2669"]
[BlackElo "2895"]
[Result "0-1"]
[Round "5"]
[TimeControl "180+1"]
[Date "2023.11.14"]
[WhiteClock "0:00:05"]
[BlackClock "0:00:08"]
[Board "31"]

1. c4 {[%clk 0:03:00]}  e5 {[%clk 0:02:59]} 2. Nc3 {[%clk 0:03:00]}  Nf6 {[%clk 0:03:00]} 3. Nf3 {[%clk 0:03:00]}  Nc6 {[%clk 0:03:00]} 4. e3 {[%clk 0:03:00]}  Bb4 {[%clk 0:03:00]} 5. Qc2 {[%clk 0:03:00]}  d6 {[%clk 0:02:56]} 6. Ne2 {[%clk 0:02:56]}  a5 {[%clk 0:02:54]} 7. a3 {[%clk 0:02:55]}  Bc5 {[%clk 0:02:54]} 8. b3 {[%clk 0:02:55]}  O-O {[%clk 0:02:54]} 9. Ng3 {[%clk 0:02:55]}  Re8 {[%clk 0:02:52]} 10. d3 {[%clk 0:02:54]}  Ne7 {[%clk 0:02:49]} 11. Bb2 {[%clk 0:02:50]}  c6 {[%clk 0:02:46]} 12. Be2 {[%clk 0:02:50]}  Ng6 {[%clk 0:02:30]} 13. O-O {[%clk 0:02:48]}  h6 {[%clk 0:02:15]} 14. Rad1 {[%clk 0:02:47]}  Bb6 {[%clk 0:02:13]} 15. Nd2 {[%clk 0:02:37]}  d5 {[%clk 0:02:11]} 16. Bf3 {[%clk 0:02:19]}  Be6 {[%clk 0:02:05]} 17. Nb1 {[%clk 0:02:15]}  Bc7 {[%clk 0:01:56]} 18. Nc3 {[%clk 0:02:11]}  Nh4 {[%clk 0:01:56]} 19. Be2 {[%clk 0:02:05]}  Qd7 {[%clk 0:01:56]} 20. Na4 {[%clk 0:02:03]}  Bh3 {[%clk 0:01:36]} 21. Nc5 {[%clk 0:01:42]}  Qc8 {[%clk 0:01:36]} 22. Bf3 {[%clk 0:01:07]}  Nxf3+ {[%clk 0:01:25]} 23. gxf3 {[%clk 0:01:08]}  b6 {[%clk 0:01:22]} 24. Na4 {[%clk 0:01:05]}  Bxf1 {[%clk 0:01:17]} 25. Rxf1 {[%clk 0:01:06]}  b5 {[%clk 0:01:08]} 26. Nc3 {[%clk 0:00:55]}  Qd7 {[%clk 0:00:57]} 27. Rd1 {[%clk 0:00:52]}  Rad8 {[%clk 0:00:56]} 28. d4 {[%clk 0:00:49]}  exd4 {[%clk 0:00:41]} 29. Rxd4 {[%clk 0:00:48]}  Be5 {[%clk 0:00:40]} 30. Rd1 {[%clk 0:00:45]}  bxc4 {[%clk 0:00:37]} 31. bxc4 {[%clk 0:00:43]}  Qe6 {[%clk 0:00:22]} 32. cxd5 {[%clk 0:00:32]}  Nxd5 {[%clk 0:00:23]} 33. Nce4 {[%clk 0:00:27]}  Nxe3 {[%clk 0:00:15]} 34. fxe3 {[%clk 0:00:19]}  Rxd1+ {[%clk 0:00:14]} 35. Qxd1 {[%clk 0:00:20]}  Bxb2 {[%clk 0:00:15]} 36. Qd2 {[%clk 0:00:18]}  Bxa3 {[%clk 0:00:13]} 37. Qxa5 {[%clk 0:00:18]}  Bf8 {[%clk 0:00:12]} 38. Kg2 {[%clk 0:00:14]}  Qd5 {[%clk 0:00:10]} 39. Qxd5 {[%clk 0:00:05]}  cxd5 {[%clk 0:00:10]} 40. Nc3 {[%clk 0:00:06]}  Rxe3 {[%clk 0:00:09]} 41. Nxd5 {[%clk 0:00:06]}  Ra3 {[%clk 0:00:09]} 42. Ne4 {[%clk 0:00:07]}  f5 {[%clk 0:00:08]} 43. Ng3 {[%clk 0:00:06]}  g6 {[%clk 0:00:07]} 44. Nf4 {[%clk 0:00:05]}  Ra2+ {[%clk 0:00:07]} 45. Kh3 {[%clk 0:00:05]}  Kf7 {[%clk 0:00:07]} 46. Nd3 {[%clk 0:00:05]}  Bd6 {[%clk 0:00:07]} 47. f4 {[%clk 0:00:05]}  Ra3 {[%clk 0:00:07]} 48. Ne5+ {[%clk 0:00:05]}  Bxe5 {[%clk 0:00:08]} 49. fxe5 {[%clk 0:00:05]}  f4 {[%clk 0:00:08]} 0-1


[Site "https://www.chess.com"]

[Event "Titled Tuesday Blitz November 14 Early 2023"]
[White "Mahdavi, Reza"]
[Black "Yen, William"]
[WhiteFideId "12595926"]
[BlackFideId "30932025"]
[WhiteElo "2889"]
[BlackElo "2664"]
[Result "1-0"]
[Round "5"]
[TimeControl "180+1"]
[Date "2023.11.14"]
[WhiteClock "0:00:17"]
[BlackClock "0:00:12"]
[Board "33"]

1. e4 {[%clk 0:02:51]}  c5 {[%clk 0:02:53]} 2. Nf3 {[%clk 0:02:51]}  d6 {[%clk 0:02:54]} 3. d4 {[%clk 0:02:51]}  cxd4 {[%clk 0:02:55]} 4. Nxd4 {[%clk 0:02:52]}  Nf6 {[%clk 0:02:54]} 5. Nc3 {[%clk 0:02:52]}  a6 {[%clk 0:02:54]} 6. Bd3 {[%clk 0:02:53]}  g6 {[%clk 0:02:51]} 7. f3 {[%clk 0:02:53]}  Bg7 {[%clk 0:02:49]} 8. Be3 {[%clk 0:02:54]}  O-O {[%clk 0:02:50]} 9. Qd2 {[%clk 0:02:50]}  Nc6 {[%clk 0:02:47]} 10. O-O-O {[%clk 0:02:50]}  Ne5 {[%clk 0:02:26]} 11. Be2 {[%clk 0:02:15]}  b5 {[%clk 0:02:24]} 12. Bh6 {[%clk 0:02:11]}  b4 {[%clk 0:02:20]} 13. Nd5 {[%clk 0:02:03]}  Nxd5 {[%clk 0:02:19]} 14. exd5 {[%clk 0:02:03]}  a5 {[%clk 0:02:09]} 15. Bxg7 {[%clk 0:01:56]}  Kxg7 {[%clk 0:02:10]} 16. f4 {[%clk 0:01:57]}  Ng4 {[%clk 0:02:05]} 17. Nc6 {[%clk 0:01:51]}  Qc7 {[%clk 0:02:00]} 18. Bxg4 {[%clk 0:01:43]}  Bxg4 {[%clk 0:02:01]} 19. Qd4+ {[%clk 0:01:42]}  f6 {[%clk 0:01:53]} 20. Rde1 {[%clk 0:01:42]}  Rae8 {[%clk 0:01:53]} 21. h3 {[%clk 0:01:36]}  Bc8 {[%clk 0:01:47]} 22. g4 {[%clk 0:01:14]}  Bb7 {[%clk 0:01:46]} 23. Re6 {[%clk 0:01:14]}  Bxc6 {[%clk 0:01:43]} 24. Qc4 {[%clk 0:01:08]}  Rf7 {[%clk 0:01:24]} 25. dxc6 {[%clk 0:01:03]}  Rc8 {[%clk 0:01:24]} 26. Rhe1 {[%clk 0:01:03]}  Kf8 {[%clk 0:01:21]} 27. f5 {[%clk 0:00:50]}  Qxc6 {[%clk 0:01:20]} 28. Qd3 {[%clk 0:00:50]}  g5 {[%clk 0:01:15]} 29. R6e2 {[%clk 0:00:46]}  Qc4 {[%clk 0:01:13]} 30. Qxc4 {[%clk 0:00:21]}  Rxc4 {[%clk 0:01:13]} 31. b3 {[%clk 0:00:21]}  Rc5 {[%clk 0:01:14]} 32. Kb2 {[%clk 0:00:22]}  Ke8 {[%clk 0:01:13]} 33. a3 {[%clk 0:00:22]}  bxa3+ {[%clk 0:01:10]} 34. Kxa3 {[%clk 0:00:23]}  Kd7 {[%clk 0:01:11]} 35. c4 {[%clk 0:00:23]}  h5 {[%clk 0:01:08]} 36. Ka4 {[%clk 0:00:21]}  h4 {[%clk 0:01:04]} 37. Re6 {[%clk 0:00:20]}  Rh7 {[%clk 0:01:03]} 38. R1e2 {[%clk 0:00:20]}  Rf7 {[%clk 0:01:01]} 39. Ka3 {[%clk 0:00:19]}  Rh7 {[%clk 0:01:00]} 40. R2e4 {[%clk 0:00:20]}  Rf7 {[%clk 0:01:00]} 41. Kb2 {[%clk 0:00:21]}  Rh7 {[%clk 0:01:01]} 42. Kc3 {[%clk 0:00:21]}  Rf7 {[%clk 0:01:01]} 43. Re1 {[%clk 0:00:19]}  Rh7 {[%clk 0:01:01]} 44. Kd4 {[%clk 0:00:19]}  Rf7 {[%clk 0:00:57]} 45. R1e2 {[%clk 0:00:18]}  Rh7 {[%clk 0:00:57]} 46. Kc3 {[%clk 0:00:17]}  Rf7 {[%clk 0:00:57]} 47. Ra2 {[%clk 0:00:18]}  Rh7 {[%clk 0:00:56]} 48. b4 {[%clk 0:00:17]}  axb4+ {[%clk 0:00:56]} 49. Kxb4 {[%clk 0:00:18]}  Rh8 {[%clk 0:00:53]} 50. Ra7+ {[%clk 0:00:18]}  Rc7 {[%clk 0:00:52]} 51. Rxe7+ {[%clk 0:00:18]}  Kxe7 {[%clk 0:00:50]} 52. Rxc7+ {[%clk 0:00:19]}  Kd8 {[%clk 0:00:46]} 53. Ra7 {[%clk 0:00:20]}  Re8 {[%clk 0:00:44]} 54. Ra8+ {[%clk 0:00:17]}  Kd7 {[%clk 0:00:45]} 55. Rxe8 {[%clk 0:00:18]}  Kxe8 {[%clk 0:00:46]} 56. Kb5 {[%clk 0:00:19]}  Kd7 {[%clk 0:00:43]} 57. Kb6 {[%clk 0:00:19]}  d5 {[%clk 0:00:40]} 58. cxd5 {[%clk 0:00:12]}  Kd6 {[%clk 0:00:41]} 59. Kb7 {[%clk 0:00:13]}  Kd7 {[%clk 0:00:38]} 60. d6 {[%clk 0:00:09]}  Kxd6 {[%clk 0:00:36]} 61. Kc8 {[%clk 0:00:10]}  Ke5 {[%clk 0:00:18]} 62. Kd7 {[%clk 0:00:10]}  Kf4 {[%clk 0:00:19]} 63. Ke6 {[%clk 0:00:11]}  Kg3 {[%clk 0:00:20]} 64. Kxf6 {[%clk 0:00:12]}  Kxh3 {[%clk 0:00:21]} 65. Kxg5 {[%clk 0:00:13]}  Kg3 {[%clk 0:00:19]} 66. f6 {[%clk 0:00:13]}  h3 {[%clk 0:00:20]} 67. f7 {[%clk 0:00:14]}  h2 {[%clk 0:00:21]} 68. f8=Q {[%clk 0:00:15]}  h1=Q {[%clk 0:00:21]} 69. Qf4+ {[%clk 0:00:15]}  Kh3 {[%clk 0:00:20]} 70. Qe3+ {[%clk 0:00:16]}  Kh2 {[%clk 0:00:17]} 71. Qf2+ {[%clk 0:00:16]}  Kh3 {[%clk 0:00:12]} 72. Qh4+ {[%clk 0:00:17]} 1-0


[Site "https://www.chess.com"]

[Event "Titled Tuesday Blitz November 14 Early 2023"]
[White "Maltsevskaya, Aleksandra"]
[Black "Bachmann, Axel"]
[WhiteFideId "24174041"]
[BlackFideId "3700488"]
[WhiteElo "2658"]
[BlackElo "2881"]
[Result "1-0"]
[Round "5"]
[TimeControl "180+1"]
[Date "2023.11.14"]
[WhiteClock "0:00:05"]
[BlackClock "0:00:00"]
[Board "35"]

1. e4 {[%clk 0:03:00]}  e5 {[%clk 0:02:47]} 2. Nf3 {[%clk 0:02:59]}  Nc6 {[%clk 0:02:48]} 3. Bb5 {[%clk 0:02:59]}  a6 {[%clk 0:02:48]} 4. Ba4 {[%clk 0:03:00]}  Nf6 {[%clk 0:02:48]} 5. O-O {[%clk 0:03:00]}  b5 {[%clk 0:02:48]} 6. Bb3 {[%clk 0:03:00]}  Bb7 {[%clk 0:02:49]} 7. c3 {[%clk 0:02:59]}  Nxe4 {[%clk 0:02:41]} 8. d4 {[%clk 0:02:59]}  exd4 {[%clk 0:02:29]} 9. Re1 {[%clk 0:02:59]}  d5 {[%clk 0:02:28]} 10. Ng5 {[%clk 0:02:27]}  Ne5 {[%clk 0:01:41]} 11. cxd4 {[%clk 0:02:15]}  Nc4 {[%clk 0:01:35]} 12. f3 {[%clk 0:02:10]}  Be7 {[%clk 0:01:29]} 13. fxe4 {[%clk 0:02:07]}  Bxg5 {[%clk 0:01:27]} 14. exd5+ {[%clk 0:02:07]}  Kf8 {[%clk 0:01:10]} 15. Bxc4 {[%clk 0:01:46]}  bxc4 {[%clk 0:01:07]} 16. Nc3 {[%clk 0:00:54]}  h5 {[%clk 0:01:03]} 17. Qa4 {[%clk 0:00:51]}  Bxc1 {[%clk 0:00:48]} 18. Raxc1 {[%clk 0:00:24]}  Bxd5 {[%clk 0:00:48]} 19. Nxd5 {[%clk 0:00:25]}  Qxd5 {[%clk 0:00:49]} 20. Rxc4 {[%clk 0:00:25]}  Qd6 {[%clk 0:00:49]} 21. Rc6 {[%clk 0:00:20]}  Qd7 {[%clk 0:00:49]} 22. Qc4 {[%clk 0:00:20]}  Rc8 {[%clk 0:00:43]} 23. Qc5+ {[%clk 0:00:15]}  Kg8 {[%clk 0:00:43]} 24. Rxa6 {[%clk 0:00:14]}  h4 {[%clk 0:00:41]} 25. Ra3 {[%clk 0:00:09]}  Rh6 {[%clk 0:00:34]} 26. Rae3 {[%clk 0:00:08]}  h3 {[%clk 0:00:27]} 27. gxh3 {[%clk 0:00:07]}  Rxh3 {[%clk 0:00:23]} 28. Rxh3 {[%clk 0:00:07]}  Qxh3 {[%clk 0:00:24]} 29. Qc6 {[%clk 0:00:04]}  Qg4+ {[%clk 0:00:21]} 30. Kh1 {[%clk 0:00:05]}  Qf4 {[%clk 0:00:16]} 31. Re8+ {[%clk 0:00:04]}  Rxe8 {[%clk 0:00:16]} 32. Qxe8+ {[%clk 0:00:05]}  Kh7 {[%clk 0:00:17]} 33. Qe2 {[%clk 0:00:04]}  Qxd4 {[%clk 0:00:15]} 34. b3 {[%clk 0:00:05]}  g6 {[%clk 0:00:12]} 35. a4 {[%clk 0:00:05]}  Qc3 {[%clk 0:00:09]} 36. Qd1 {[%clk 0:00:03]}  c5 {[%clk 0:00:07]} 37. Kg2 {[%clk 0:00:04]}  f5 {[%clk 0:00:07]} 38. Qd7+ {[%clk 0:00:04]}  Kh6 {[%clk 0:00:07]} 39. Qd8 {[%clk 0:00:04]}  Qc2+ {[%clk 0:00:05]} 40. Kg1 {[%clk 0:00:05]}  Qc1+ {[%clk 0:00:00]} 41. Kg2 {[%clk 0:00:05]} 1-0


[Site "https://www.chess.com"]

[Event "Titled Tuesday Blitz November 14 Early 2023"]
[White "mind1mover"]
[Black "Al-Tarboush, Ward"]
[BlackFideId "7601450"]
[WhiteElo "2844"]
[BlackElo "2645"]
[Result "1-0"]
[Round "5"]
[TimeControl "180+1"]
[Date "2023.11.14"]
[WhiteClock "0:00:08"]
[BlackClock "0:01:10"]
[Board "37"]

1. Nf3 {[%clk 0:03:00]}  d5 {[%clk 0:02:59]} 2. b3 {[%clk 0:03:00]}  Nf6 {[%clk 0:02:59]} 3. Bb2 {[%clk 0:03:01]}  Bg4 {[%clk 0:02:57]} 4. e3 {[%clk 0:02:59]}  Nc6 {[%clk 0:02:57]} 5. Be2 {[%clk 0:02:59]}  e6 {[%clk 0:02:57]} 6. c4 {[%clk 0:02:57]}  Bd6 {[%clk 0:02:58]} 7. cxd5 {[%clk 0:02:53]}  exd5 {[%clk 0:02:58]} 8. h3 {[%clk 0:02:53]}  Bf5 {[%clk 0:02:58]} 9. O-O {[%clk 0:02:53]}  O-O {[%clk 0:02:57]} 10. a3 {[%clk 0:02:48]}  Re8 {[%clk 0:02:57]} 11. b4 {[%clk 0:02:44]}  h6 {[%clk 0:02:54]} 12. Nc3 {[%clk 0:02:38]}  Ne5 {[%clk 0:02:53]} 13. Nb5 {[%clk 0:02:31]}  Nxf3+ {[%clk 0:02:45]} 14. Bxf3 {[%clk 0:02:32]}  Be5 {[%clk 0:02:46]} 15. Bxe5 {[%clk 0:02:30]}  Rxe5 {[%clk 0:02:46]} 16. d3 {[%clk 0:02:23]}  c6 {[%clk 0:02:44]} 17. Nd4 {[%clk 0:02:23]}  Bd7 {[%clk 0:02:42]} 18. a4 {[%clk 0:02:17]}  Qc8 {[%clk 0:02:42]} 19. Kh2 {[%clk 0:02:03]}  Qc7 {[%clk 0:02:40]} 20. g3 {[%clk 0:01:45]}  Rae8 {[%clk 0:02:37]} 21. Rc1 {[%clk 0:01:41]}  Qd6 {[%clk 0:02:35]} 22. b5 {[%clk 0:01:36]}  c5 {[%clk 0:02:35]} 23. Nb3 {[%clk 0:01:37]}  b6 {[%clk 0:02:35]} 24. d4 {[%clk 0:01:37]}  Rg5 {[%clk 0:02:28]} 25. dxc5 {[%clk 0:01:28]}  bxc5 {[%clk 0:02:28]} 26. Nxc5 {[%clk 0:01:25]}  Rxe3 {[%clk 0:02:28]} 27. Nxd7 {[%clk 0:01:03]}  Nxd7 {[%clk 0:02:26]} 28. h4 {[%clk 0:00:49]}  Rg6 {[%clk 0:02:15]} 29. Qxd5 {[%clk 0:00:43]}  Ra3 {[%clk 0:01:29]} 30. Rc8+ {[%clk 0:00:35]}  Nf8 {[%clk 0:01:21]} 31. Re1 {[%clk 0:00:25]}  Qb6 {[%clk 0:01:13]} 32. Rxf8+ {[%clk 0:00:17]}  Kh7 {[%clk 0:01:13]} 33. Re2 {[%clk 0:00:13]}  Rf6 {[%clk 0:01:13]} 34. Be4+ {[%clk 0:00:10]}  g6 {[%clk 0:01:12]} 35. Rxf7+ {[%clk 0:00:10]}  Kh8 {[%clk 0:01:10]} 36. Qa8+ {[%clk 0:00:08]} 1-0


[Site "https://www.chess.com"]

[Event "Titled Tuesday Blitz November 14 Early 2023"]
[White "Rychkov, Oleg"]
[Black "Belov, Alexei"]
[WhiteFideId "4122852"]
[BlackFideId "4128206"]
[WhiteElo "2824"]
[BlackElo "2627"]
[Result "1-0"]
[Round "5"]
[TimeControl "180+1"]
[Date "2023.11.14"]
[WhiteClock "0:00:15"]
[BlackClock "0:00:00"]
[Board "40"]

1. e4 {[%clk 0:03:00]}  e6 {[%clk 0:02:59]} 2. d4 {[%clk 0:03:00]}  d5 {[%clk 0:03:00]} 3. Nd2 {[%clk 0:03:00]}  Nf6 {[%clk 0:03:00]} 4. Bd3 {[%clk 0:02:58]}  c5 {[%clk 0:03:00]} 5. c3 {[%clk 0:02:57]}  Nc6 {[%clk 0:02:59]} 6. Ngf3 {[%clk 0:02:57]}  dxe4 {[%clk 0:02:45]} 7. Nxe4 {[%clk 0:02:56]}  cxd4 {[%clk 0:02:46]} 8. Nxf6+ {[%clk 0:02:47]}  gxf6 {[%clk 0:02:32]} 9. cxd4 {[%clk 0:02:45]}  Bd7 {[%clk 0:02:27]} 10. O-O {[%clk 0:02:39]}  Qb6 {[%clk 0:02:13]} 11. d5 {[%clk 0:02:30]}  exd5 {[%clk 0:01:58]} 12. Re1+ {[%clk 0:02:30]}  Be7 {[%clk 0:01:58]} 13. Be3 {[%clk 0:02:27]}  d4 {[%clk 0:01:45]} 14. Bh6 {[%clk 0:02:22]}  O-O-O {[%clk 0:01:42]} 15. a3 {[%clk 0:02:09]}  Bd6 {[%clk 0:01:36]} 16. b4 {[%clk 0:02:06]}  Rhe8 {[%clk 0:01:32]} 17. Qc2 {[%clk 0:02:00]}  Kb8 {[%clk 0:01:30]} 18. Bxh7 {[%clk 0:01:50]}  Ne5 {[%clk 0:01:24]} 19. Nxe5 {[%clk 0:01:48]}  fxe5 {[%clk 0:01:23]} 20. Bg5 {[%clk 0:01:37]}  Rc8 {[%clk 0:01:23]} 21. Qd2 {[%clk 0:01:35]}  f5 {[%clk 0:01:15]} 22. Bg6 {[%clk 0:01:27]}  Rf8 {[%clk 0:00:55]} 23. h4 {[%clk 0:01:25]}  e4 {[%clk 0:00:49]} 24. Rac1 {[%clk 0:01:15]}  Ka8 {[%clk 0:00:46]} 25. h5 {[%clk 0:01:14]}  d3 {[%clk 0:00:43]} 26. Rxc8+ {[%clk 0:00:57]}  Rxc8 {[%clk 0:00:42]} 27. Rc1 {[%clk 0:00:58]}  Rf8 {[%clk 0:00:25]} 28. Qe3 {[%clk 0:00:48]}  Qa6 {[%clk 0:00:21]} 29. Qd4 {[%clk 0:00:47]}  Be6 {[%clk 0:00:16]} 30. h6 {[%clk 0:00:44]}  Bg8 {[%clk 0:00:06]} 31. h7 {[%clk 0:00:42]}  Bxh7 {[%clk 0:00:06]} 32. Bxh7 {[%clk 0:00:42]}  Bb8 {[%clk 0:00:06]} 33. Qg7 {[%clk 0:00:34]}  Re8 {[%clk 0:00:05]} 34. Be3 {[%clk 0:00:33]}  Qxa3 {[%clk 0:00:05]} 35. Qd7 {[%clk 0:00:26]}  Rh8 {[%clk 0:00:04]} 36. Qxf5 {[%clk 0:00:19]}  Qxb4 {[%clk 0:00:03]} 37. Qxe4 {[%clk 0:00:17]}  Qd6 {[%clk 0:00:03]} 38. g3 {[%clk 0:00:16]}  d2 {[%clk 0:00:03]} 39. Rd1 {[%clk 0:00:16]}  Qd7 {[%clk 0:00:03]} 40. Bf5 {[%clk 0:00:15]}  Qg7 {[%clk 0:00:02]} 41. Rxd2 {[%clk 0:00:15]}  Qa1+ {[%clk 0:00:01]} 42. Qb1 {[%clk 0:00:15]}  Qe5 {[%clk 0:00:00]} 43. Be4 {[%clk 0:00:15]} 1-0


[Site "https://www.chess.com"]

[Event "Titled Tuesday Blitz November 14 Early 2023"]
[White "Karamsetty, Jeevan"]
[Black "Szpar, Milosz"]
[WhiteFideId "2025337"]
[BlackFideId "1184989"]
[WhiteElo "2618"]
[BlackElo "2824"]
[Result "0-1"]
[Round "5"]
[TimeControl "180+1"]
[Date "2023.11.14"]
[WhiteClock "0:00:11"]
[BlackClock "0:01:05"]
[Board "41"]

1. e4 {[%clk 0:03:00]}  c5 {[%clk 0:02:59]} 2. Nc3 {[%clk 0:03:00]}  d6 {[%clk 0:02:55]} 3. f4 {[%clk 0:02:59]}  Nc6 {[%clk 0:02:55]} 4. Nf3 {[%clk 0:02:59]}  g6 {[%clk 0:02:55]} 5. Bc4 {[%clk 0:02:55]}  Bg7 {[%clk 0:02:54]} 6. O-O {[%clk 0:02:54]}  e6 {[%clk 0:02:54]} 7. d3 {[%clk 0:02:53]}  Nge7 {[%clk 0:02:54]} 8. f5 {[%clk 0:02:53]}  d5 {[%clk 0:02:46]} 9. Bb3 {[%clk 0:02:34]}  dxe4 {[%clk 0:02:41]} 10. Nxe4 {[%clk 0:02:16]}  exf5 {[%clk 0:02:35]} 11. Neg5 {[%clk 0:02:02]}  O-O {[%clk 0:02:35]} 12. Qe1 {[%clk 0:01:55]}  h6 {[%clk 0:02:31]} 13. Qh4 {[%clk 0:01:39]}  Nd5 {[%clk 0:02:01]} 14. Nh3 {[%clk 0:00:49]}  Qxh4 {[%clk 0:01:55]} 15. Nxh4 {[%clk 0:00:50]}  Be6 {[%clk 0:01:56]} 16. Nf3 {[%clk 0:00:39]}  Rfe8 {[%clk 0:01:53]} 17. c3 {[%clk 0:00:34]}  Rad8 {[%clk 0:01:52]} 18. Ba4 {[%clk 0:00:25]}  Bd7 {[%clk 0:01:44]} 19. Nf4 {[%clk 0:00:23]}  Nce7 {[%clk 0:01:31]} 20. Bxd7 {[%clk 0:00:23]}  Rxd7 {[%clk 0:01:32]} 21. Rd1 {[%clk 0:00:17]}  Red8 {[%clk 0:01:32]} 22. Ne2 {[%clk 0:00:15]}  Nc7 {[%clk 0:01:29]} 23. Be3 {[%clk 0:00:14]}  Ne6 {[%clk 0:01:27]} 24. d4 {[%clk 0:00:14]}  Nd5 {[%clk 0:01:21]} 25. Bf2 {[%clk 0:00:14]}  c4 {[%clk 0:01:21]} 26. b3 {[%clk 0:00:12]}  Rc7 {[%clk 0:01:20]} 27. bxc4 {[%clk 0:00:12]}  Rxc4 {[%clk 0:01:20]} 28. Rab1 {[%clk 0:00:13]}  b6 {[%clk 0:01:15]} 29. Nd2 {[%clk 0:00:13]}  Rxc3 {[%clk 0:01:13]} 30. Nxc3 {[%clk 0:00:11]}  Nxc3 {[%clk 0:01:14]} 31. Nb3 {[%clk 0:00:11]}  Nxb1 {[%clk 0:01:12]} 32. Rxb1 {[%clk 0:00:12]}  Nxd4 {[%clk 0:01:06]} 33. Rd1 {[%clk 0:00:11]}  Nf3+ {[%clk 0:01:05]} 0-1


[Site "https://www.chess.com"]

[Event "Titled Tuesday Blitz November 14 Early 2023"]
[White "Samsonkin, Artiom"]
[Black "Ahmad, Khagan"]
[WhiteFideId "13503111"]
[BlackFideId "13431552"]
[WhiteElo "2822"]
[BlackElo "2609"]
[Result "1-0"]
[Round "5"]
[TimeControl "180+1"]
[Date "2023.11.14"]
[WhiteClock "0:00:06"]
[BlackClock "0:00:00"]
[Board "42"]

1. e4 {[%clk 0:03:00]}  c5 {[%clk 0:02:58]} 2. Nf3 {[%clk 0:03:00]}  d6 {[%clk 0:02:49]} 3. d4 {[%clk 0:02:49]}  cxd4 {[%clk 0:02:50]} 4. Qxd4 {[%clk 0:02:48]}  Nc6 {[%clk 0:02:39]} 5. Bb5 {[%clk 0:02:47]}  Bd7 {[%clk 0:02:39]} 6. Qd3 {[%clk 0:02:47]}  Nf6 {[%clk 0:02:39]} 7. O-O {[%clk 0:02:47]}  g6 {[%clk 0:02:38]} 8. c4 {[%clk 0:02:48]}  Bg7 {[%clk 0:02:38]} 9. Nc3 {[%clk 0:02:48]}  O-O {[%clk 0:02:39]} 10. h3 {[%clk 0:02:49]}  a6 {[%clk 0:02:38]} 11. Bxc6 {[%clk 0:02:50]}  Bxc6 {[%clk 0:02:39]} 12. Be3 {[%clk 0:02:50]}  Rc8 {[%clk 0:02:39]} 13. Rac1 {[%clk 0:02:47]}  Nd7 {[%clk 0:02:38]} 14. Nd4 {[%clk 0:02:34]}  Nc5 {[%clk 0:02:33]} 15. Qb1 {[%clk 0:02:34]}  a5 {[%clk 0:01:44]} 16. Rfd1 {[%clk 0:02:34]}  Qb6 {[%clk 0:01:37]} 17. b3 {[%clk 0:02:09]}  Qa6 {[%clk 0:01:13]} 18. f3 {[%clk 0:01:53]}  b6 {[%clk 0:01:05]} 19. a3 {[%clk 0:01:43]}  Qb7 {[%clk 0:00:51]} 20. Nd5 {[%clk 0:01:25]}  Bxd5 {[%clk 0:00:42]} 21. cxd5 {[%clk 0:01:25]}  a4 {[%clk 0:00:39]} 22. bxa4 {[%clk 0:01:10]}  Bxd4 {[%clk 0:00:38]} 23. Rxd4 {[%clk 0:01:03]}  Qa6 {[%clk 0:00:19]} 24. Rdc4 {[%clk 0:00:46]}  Nxa4 {[%clk 0:00:14]} 25. Rxc8 {[%clk 0:00:33]}  Rxc8 {[%clk 0:00:13]} 26. Rxc8+ {[%clk 0:00:34]}  Qxc8 {[%clk 0:00:13]} 27. Qb5 {[%clk 0:00:35]}  Qc3 {[%clk 0:00:06]} 28. Bf2 {[%clk 0:00:19]}  Nc5 {[%clk 0:00:05]} 29. Qxb6 {[%clk 0:00:15]}  Qxa3 {[%clk 0:00:02]} 30. Qd8+ {[%clk 0:00:12]}  Kg7 {[%clk 0:00:02]} 31. Qxe7 {[%clk 0:00:13]}  Qc1+ {[%clk 0:00:03]} 32. Kh2 {[%clk 0:00:13]}  Qf4+ {[%clk 0:00:02]} 33. Bg3 {[%clk 0:00:13]}  Qd2 {[%clk 0:00:02]} 34. Qxd6 {[%clk 0:00:12]}  Nd3 {[%clk 0:00:02]} 35. Be5+ {[%clk 0:00:08]}  Kh6 {[%clk 0:00:01]} 36. Qf8+ {[%clk 0:00:08]}  Kh5 {[%clk 0:00:01]} 37. Bg3 {[%clk 0:00:07]}  Ne1 {[%clk 0:00:01]} 38. Bxe1 {[%clk 0:00:07]}  Qxe1 {[%clk 0:00:02]} 39. Qxf7 {[%clk 0:00:08]}  h6 {[%clk 0:00:00]} 40. Qe6 {[%clk 0:00:06]} 1-0


[Site "https://www.chess.com"]

[Event "Titled Tuesday Blitz November 14 Early 2023"]
[White "Brunner, Nicolas"]
[Black "Vakhlamov, Igor L."]
[WhiteFideId "620246"]
[BlackFideId "24126748"]
[WhiteElo "2578"]
[BlackElo "2811"]
[Result "1-0"]
[Round "5"]
[TimeControl "180+1"]
[Date "2023.11.14"]
[WhiteClock "0:00:55"]
[BlackClock "0:00:00"]
[Board "45"]

1. Nf3 {[%clk 0:03:00]}  d5 {[%clk 0:02:59]} 2. g3 {[%clk 0:03:01]}  Nf6 {[%clk 0:02:59]} 3. Bg2 {[%clk 0:03:01]}  c5 {[%clk 0:02:59]} 4. c4 {[%clk 0:02:56]}  e6 {[%clk 0:02:58]} 5. O-O {[%clk 0:02:54]}  Nc6 {[%clk 0:02:58]} 6. cxd5 {[%clk 0:02:53]}  exd5 {[%clk 0:02:59]} 7. d4 {[%clk 0:02:54]}  Be7 {[%clk 0:03:00]} 8. Nc3 {[%clk 0:02:53]}  O-O {[%clk 0:02:59]} 9. Bg5 {[%clk 0:02:54]}  c4 {[%clk 0:02:56]} 10. Ne5 {[%clk 0:02:53]}  Be6 {[%clk 0:02:55]} 11. b3 {[%clk 0:02:48]}  Qa5 {[%clk 0:02:49]} 12. Qd2 {[%clk 0:02:44]}  Bb4 {[%clk 0:02:38]} 13. Rac1 {[%clk 0:02:27]}  Ne4 {[%clk 0:02:08]} 14. Bxe4 {[%clk 0:02:24]}  dxe4 {[%clk 0:02:09]} 15. Nxc4 {[%clk 0:02:05]}  Bxc4 {[%clk 0:02:07]} 16. bxc4 {[%clk 0:02:05]}  Bxc3 {[%clk 0:01:41]} 17. Rxc3 {[%clk 0:02:04]}  Nxd4 {[%clk 0:01:41]} 18. Qxd4 {[%clk 0:02:02]}  Qxg5 {[%clk 0:01:41]} 19. Qxe4 {[%clk 0:02:02]}  b6 {[%clk 0:01:41]} 20. Rd3 {[%clk 0:01:55]}  Rae8 {[%clk 0:01:14]} 21. Qf3 {[%clk 0:01:44]}  Qc5 {[%clk 0:01:07]} 22. Rd7 {[%clk 0:01:40]}  Qxc4 {[%clk 0:01:06]} 23. Rxa7 {[%clk 0:01:38]}  Qxe2 {[%clk 0:01:06]} 24. Qxe2 {[%clk 0:01:36]}  Rxe2 {[%clk 0:01:07]} 25. Rb1 {[%clk 0:01:36]}  Re6 {[%clk 0:00:28]} 26. Rb7 {[%clk 0:01:35]}  Ra8 {[%clk 0:00:22]} 27. R1xb6 {[%clk 0:01:33]}  Ree8 {[%clk 0:00:19]} 28. Rb2 {[%clk 0:01:29]}  g6 {[%clk 0:00:19]} 29. Rc2 {[%clk 0:01:26]}  Re6 {[%clk 0:00:17]} 30. Rcc7 {[%clk 0:01:21]}  Rf6 {[%clk 0:00:16]} 31. Ra7 {[%clk 0:01:21]}  Rb8 {[%clk 0:00:16]} 32. Rc2 {[%clk 0:01:17]}  h5 {[%clk 0:00:16]} 33. h4 {[%clk 0:01:16]}  Rf5 {[%clk 0:00:16]} 34. a4 {[%clk 0:01:12]}  Kg7 {[%clk 0:00:13]} 35. Ra2 {[%clk 0:01:12]}  Rb1+ {[%clk 0:00:10]} 36. Kg2 {[%clk 0:01:12]}  Rb6 {[%clk 0:00:10]} 37. a5 {[%clk 0:01:07]}  Rbb5 {[%clk 0:00:09]} 38. a6 {[%clk 0:00:58]}  Ra5 {[%clk 0:00:09]} 39. Rxa5 {[%clk 0:00:58]}  Rxa5 {[%clk 0:00:08]} 40. Kf3 {[%clk 0:00:58]}  Kf6 {[%clk 0:00:07]} 41. Ke4 {[%clk 0:00:56]}  Ra2 {[%clk 0:00:00]} 42. Kd5 {[%clk 0:00:55]} 1-0


[Site "https://www.chess.com"]